bitfinex/quotes_ETHUSD_20250214
["timestamp","ask_amount","ask_price","bid_price","bid_amount"]
[1739492354626,0.55,2674.6,2674.3,3.73927]
[1739492355233,0.55,2674.6,2674.4,3.73914]
[1739492355791,0.8294966,2674.5,2674.4,3.73914]
[1739492358218,2.44362824,2674.7,2674.4,3.73914]
[1739492358963,2.44362824,2674.7,2674.2,8.98936]
[1739492359128,2.44362824,2674.7,2674.4,3.73914]
[1739492359643,2.44362824,2674.7,2674.2,8.98932]
[1739492359957,2.44362824,2674.7,2674.2,12.72866]
[1739492360115,2.44362824,2674.7,2674.2,12.72867]
[1739492360752,2.44362824,2674.7,2674.2,8.98932]
[1739492360957,2.44362824,2674.7,2674.3,3.73927]
[1739492362659,2.44362824,2674.7,2674.3,3.73921]
[1739492362855,2.44362824,2674.7,2674.2,12.72866]
[1739492363066,2.44362824,2674.7,2674.2,8.98932]
[1739492363916,2.44362824,2674.7,2674.3,0.04782391]
[1739492364143,2.44362824,2674.7,2674.4,3.73915]
[1739492364361,2.44362824,2674.7,2674.4,3.73904]
[1739492364719,2.44362824,2674.7,2674.5,0.04782391]
[1739492365361,2.44362824,2674.7,2674.2,8.98935]
[1739492365531,2.99362824,2674.7,2674.6,0.04782391]
[1739492366031,2.99362824,2674.7,2674.2,12.7287]
[1739492366232,2.99362824,2674.7,2674.3,0.04782391]
[1739492366432,2.99362824,2674.7,2674.2,8.98935]
[1739492366633,2.99362824,2674.7,2674.3,0.04782391]
[1739492366833,2.99362824,2674.7,2674.3,3.7392]
[1739492367152,2.99362824,2674.7,2674.4,0.04793905]
[1739492367359,2.99362824,2674.7,2674.4,3.78698905]
[1739492367529,2.99362824,2674.7,2674.4,7.52606905]
[1739492367730,2.99362824,2674.7,2674.4,0.04793905]
[1739492368195,6.73236824,2674.7,2674.2,8.98934]
[1739492368493,2.99362824,2674.7,2674.2,8.98934]
[1739492368694,2.99362824,2674.7,2674.3,0.04793905]
[1739492369190,0.55,2674.6,2674.2,8.98934]
[1739492369370,2.802,2674.5,2674.4,0.04791024]
[1739492369681,0.55,2674.4,2674.2,5.25]
[1739492370080,0.55,2674.4,2674.2,8.98933]
[1739492370305,0.55,2674.5,2674.2,8.98933]
[1739492370487,2.802,2674.5,2674.2,12.72867]
[1739492370700,2.802,2674.5,2674.2,8.98933]
[1739492371113,2.802,2674.5,2674.3,3.73918]
[1739492371386,2.802,2674.5,2674.2,8.98933]
[1739492371902,0.27985791,2674.4,2674.2,8.98933]
[1739492372108,0.27985791,2674.4,2674.3,3.73929]
[1739492372650,0.27985791,2674.4,2674.2,8.98942]
[1739492373356,2.802,2674.5,2674.2,8.98942]
[1739492373666,2.802,2674.5,2674.3,3.73926]
[1739492373860,2.802,2674.5,2674.2,7.47877]
[1739492374067,2.802,2674.5,2674.2,3.73935]
[1739492374948,2.802,2674.5,2673.7,3.73999]
[1739492374949,2.252,2674.2,2673.7,3.73999]
[1739492375148,6.68513164,2674.1,2673.7,3.73999]
[1739492375908,6.68513164,2674.1,2673.6,8.99026]
[1739492376257,3.61413164,2673.8,2673.6,5.25]
[1739492377963,5.86613164,2673.8,2673.6,5.25]
[1739492378911,6.41613164,2673.8,2673.7,0.04823653]
[1739492379760,0.55,2673.7,2673.3,3.74061]
[1739492379964,3.61413164,2673.5,2673.3,3.74061]
[1739492380174,3.61413164,2673.5,2673.4,3.74055]
[1739492381395,3.61413164,2673.8,2673.7,3.74013]
[1739492382205,3.61413164,2673.8,2673.6,3.74019]
[1739492382768,3.61413164,2673.8,2673.7,3.74013]
[1739492384079,3.61413164,2673.8,2673.6,3.74019]
[1739492384318,3.61413164,2673.8,2673.6,3.74018]
[1739492384523,3.61413164,2673.8,2673.6,7.48036]
[1739492384717,3.61413164,2673.8,2673.6,3.74018]
[1739492385136,3.61413164,2673.8,2673.6,3.74017]
[1739492385449,3.61413164,2673.8,2673.7,3.74013]
[1739492387647,5.86613164,2673.8,2673.7,3.74013]
[1739492387855,2.252,2673.8,2673.7,3.74013]
[1739492388051,2.252,2674.1,2673.9,3.73977]
[1739492389111,5.86613164,2674.1,2673.8,5.25]
[1739492390270,5.86613164,2674.1,2673.9,3.7398]
[1739492390880,5.86613164,2674.1,2673.8,5.25]
[1739492392100,5.86613164,2674.1,2673.8,8.98998]
[1739492392602,5.86613164,2674.1,2673.8,5.25]
[1739492392802,5.86613164,2674.1,2673.9,3.73983]
[1739492393860,5.86613164,2674.1,2674.0,3.78875279]
[1739492396203,2.252,2674.1,2674.0,5.14679107]
[1739492396869,2.252,2674.1,2674.0,5.93379107]
[1739492397269,2.252,2674.3,2674.1,3.73948]
[1739492397686,2.802,2674.3,2674.2,0.04904279]
[1739492397899,2.802,2674.3,2674.1,3.73955]
[1739492398067,2.802,2674.3,2674.2,0.04904279]
[1739492398266,2.802,2674.3,2674.0,4.52663]
[1739492398464,2.802,2674.3,2674.1,0.04904279]
[1739492398701,2.802,2674.3,2674.1,3.78861279]
[1739492399410,2.802,2674.3,2674.1,0.04904279]
[1739492401210,2.802,2674.3,2673.9,3.73982]
[1739492401417,2.802,2674.3,2674.2,0.04904279]
[1739492401583,2.802,2674.3,2673.9,3.73982]
[1739492401772,2.802,2674.3,2674.2,0.04904279]
[1739492401974,2.802,2674.3,2673.9,3.73982]
[1739492402172,2.802,2674.3,2674.2,0.04904279]
[1739492402386,2.802,2674.3,2673.9,3.73982]
[1739492402876,2.802,2674.3,2674.0,0.04904279]
[1739492403611,2.802,2674.3,2674.1,3.73956]
[1739492404071,2.802,2674.3,2674.2,0.04904279]
[1739492404468,2.802,2674.3,2673.9,3.73978]
[1739492404675,2.802,2674.3,2674.0,0.04904279]
[1739492406219,2.802,2674.3,2674.2,3.73943]
[1739492406576,2.252,2674.3,2674.2,3.73943]
[1739492406776,2.521,2674.5,2674.3,4.49469]
[1739492407075,2.521,2674.5,2674.4,3.7878472]
[1739492407278,3.61413164,2674.7,2674.4,0.0486972]
[1739492407587,3.61413164,2674.7,2674.4,3.7877672]
[1739492407775,5.86613164,2674.7,2674.5,3.73898]
[1739492408171,5.86613164,2674.7,2674.6,0.04862042]
[1739492409092,5.86613164,2674.7,2674.3,13.48382]
[1739492409300,5.86613164,2674.7,2674.4,3.78775042]
[1739492409505,3.61413164,2674.7,2674.6,3.73887]
[1739492409879,2.252,2674.9,2674.6,3.78749042]
[1739492410302,2.252,2674.9,2674.7,0.8097]
[1739492410705,2.252,2674.9,2674.8,0.04862042]
[1739492410910,2.252,2674.9,2674.7,0.8097]
[1739492411108,2.252,2674.9,2674.8,0.04862042]
[1739492411285,2.252,2674.9,2674.7,0.8097]
[1739492411485,2.252,2674.9,2674.8,0.04862042]
[1739492411686,2.252,2674.9,2674.6,5.25]
[1739492412022,2.252,2674.9,2674.7,0.04862042]
[1739492414472,5.99055,2674.9,2674.7,0.04862042]
[1739492415473,2.252,2674.9,2674.7,0.04862042]
[1739492419157,2.252,2674.9,2674.7,3.78734042]
[1739492419469,2.252,2674.9,2674.7,0.04862042]
[1739492421693,2.252,2674.9,2674.7,3.78727042]
[1739492422750,2.252,2674.9,2674.7,3.78726042]
[1739492422949,2.252,2674.9,2674.8,3.73859]
[1739492423297,2.252,2674.9,2674.8,0.8026]
[1739492423450,2.252,2674.9,2674.8,0.84855769]
[1739492423788,2.252,2674.9,2674.8,4.58714769]
[1739492424091,2.252,2675.2,2674.8,5.94472646]
[1739492424450,2.252,2675.2,2674.9,3.73841]
[1739492424964,2.252,2675.2,2675.0,0.04595769]
[1739492425373,2.252,2675.2,2674.8,5.89865877]
[1739492425549,2.252,2675.2,2675.1,0.04595769]
[1739492425754,2.252,2675.2,2675.1,4.56067]
[1739492426068,2.252,2675.2,2675.1,5.96151769]
[1739492426249,2.252,2675.2,2675.1,2.22334769]
[1739492426449,2.252,2675.2,2675.1,0.86845769]
[1739492427098,2.202,2675.2,2675.1,0.86845769]
[1739492427950,2.202,2675.2,2675.1,4.60662769]
[1739492428177,2.202,2675.2,2675.1,0.86845769]
[1739492430859,2.202,2675.2,2675.1,4.60662769]
[1739492431048,2.202,2675.2,2675.1,5.96611246]
[1739492431917,2.252,2675.5,2675.1,2.22794246]
[1739492432119,2.252,2675.5,2675.4,3.73775]
[1739492432255,2.252,2675.5,2675.2,3.73801]
[1739492432456,2.252,2675.5,2675.2,7.47596]
[1739492432656,2.252,2675.5,2675.3,0.96579448]
[1739492432857,2.252,2675.5,2675.3,1.0076416]
[1739492433627,2.252,2675.5,2675.3,0.04184712]
[1739492433790,2.252,2675.5,2675.4,3.73775]
[1739492434188,2.252,2675.5,2675.4,3.77957932]
[1739492437355,2.252,2675.5,2675.4,0.04182932]
[1739492437525,2.252,2675.5,2675.4,3.77957932]
[1739492439737,3.99858012,2675.5,2675.4,3.77957932]
[1739492439945,1.74658012,2675.5,2675.4,4.57227932]
[1739492444576,1.74658012,2675.5,2675.4,0.83452932]
[1739492444885,1.74658012,2675.5,2675.4,4.57227932]
[1739492445662,1.74658012,2675.7,2675.6,3.73747]
[1739492445990,1.74658012,2675.7,2675.6,3.77892557]
[1739492446865,1.74658012,2675.9,2675.6,0.04145557]
[1739492447062,1.74658012,2675.9,2675.8,4.48879]
[1739492447453,1.74658012,2675.9,2675.8,4.53024557]
[1739492447990,1.74658012,2675.9,2675.8,0.04145557]
[1739492448389,1.74658012,2675.9,2675.7,3.73733]
[1739492448589,1.74658012,2675.9,2675.8,0.04145557]
[1739492448981,1.74658012,2675.9,2675.7,3.73733]
[1739492449180,1.74658012,2675.9,2675.8,0.04058361]
[1739492449383,1.74658012,2675.9,2675.8,3.77778361]
[1739492449553,1.74658012,2675.9,2675.8,4.49437435]
[1739492449754,2.252,2676.0,2675.8,4.53495796]
[1739492449951,2.252,2676.0,2675.8,0.79775796]
[1739492450363,2.252,2676.0,2675.8,4.53491796]
[1739492450693,2.252,2676.0,2675.8,0.79775796]
[1739492450894,2.252,2676.0,2675.9,3.73706]
[1739492451098,2.252,2676.0,2675.8,0.79775796]
[1739492451253,3.60137432,2676.1,2675.9,3.73706]
[1739492451449,2.521,2676.2,2676.0,3.7369]
[1739492451655,2.252,2676.3,2676.0,4.5505]
[1739492451900,2.252,2676.3,2676.0,9.8005]
[1739492452063,0.269,2676.5,2676.1,3.77726361]
[1739492452265,5.85337432,2676.7,2676.2,5.25]
[1739492452463,5.85337432,2676.7,2676.2,8.98652]
[1739492452675,5.85337432,2676.7,2676.3,0.04054803]
[1739492454205,5.85337432,2676.4,2676.3,0.04029899]
[1739492454495,5.85337432,2676.4,2676.2,5.25]
[1739492454699,5.85337432,2676.4,2676.3,0.04029899]
[1739492454909,5.85337432,2676.4,2676.2,5.25]
[1739492455205,5.85337432,2676.4,2676.3,0.04007668]
[1739492455652,5.85337432,2676.4,2676.2,5.25]
[1739492455859,5.85337432,2676.4,2676.3,0.04007668]
[1739492456091,5.85337432,2676.4,2676.2,5.25]
[1739492456559,5.85337432,2676.4,2676.3,0.04005]
[1739492457056,5.85337432,2676.4,2676.2,5.25]
[1739492457260,5.85337432,2676.4,2676.3,0.04007668]
[1739492457480,5.85337432,2676.4,2676.2,5.25]
[1739492457680,3.60137432,2676.4,2676.3,0.525]
[1739492457885,3.60137432,2676.4,2676.2,5.25]
[1739492458157,3.60137432,2676.4,2676.3,0.04005889]
[1739492458662,3.60137432,2676.4,2676.2,5.25]
[1739492458866,3.60137432,2676.4,2676.3,0.04005889]
[1739492459196,7.33773432,2676.4,2676.2,5.25]
[1739492459450,3.60137432,2676.4,2676.3,0.04005889]
[1739492459737,3.60137432,2676.4,2676.2,5.25]
[1739492460050,3.60137432,2676.4,2676.3,0.03952529]
[1739492460535,3.60137432,2676.4,2676.2,5.25]
[1739492460740,3.60137432,2676.4,2676.3,0.03952529]
[1739492460911,3.60137432,2676.4,2676.2,5.25]
[1739492461244,3.60137432,2676.4,2676.3,0.03952529]
[1739492461741,3.60137432,2676.4,2676.2,5.25]
[1739492461942,3.60137432,2676.4,2676.3,0.03952529]
[1739492462123,3.60137432,2676.4,2676.2,5.25]
[1739492462536,3.60137432,2676.4,2676.3,0.03952529]
[1739492462905,3.60137432,2676.4,2676.0,6.0636]
[1739492463241,3.60137432,2676.4,2676.1,1.39869534]
[1739492463456,3.60137432,2676.4,2676.1,1.43822063]
[1739492466609,3.79052172,2676.4,2676.1,1.43822063]
[1739492466831,2.252,2676.3,2676.1,1.43822063]
[1739492467004,3.79052172,2676.4,2676.1,1.43822063]
[1739492468335,5.98864,2676.2,2676.1,0.03952529]
[1739492468865,2.252,2676.2,2675.8,3.0]
[1739492469081,3.60137432,2676.1,2675.8,3.0]
[1739492469397,7.33823432,2676.1,2675.9,0.03972981]
[1739492469577,5.85337432,2676.1,2675.9,0.03972981]
[1739492469876,1.74626213,2676.0,2675.7,6.0333]
[1739492470074,1.74626213,2675.8,2675.7,6.0333]
[1739492471138,1.74626213,2675.8,2675.7,9.77063]
[1739492471316,1.74626213,2675.8,2675.7,7.377219]
[1739492472047,1.74626213,2675.8,2675.7,3.639889]
[1739492472255,1.74626213,2675.8,2675.7,4.52063]
[1739492472622,1.74626213,2675.8,2675.7,0.7833]
[1739492473251,1.74626213,2675.8,2675.7,4.52063]
[1739492473452,1.74626213,2675.8,2675.7,0.7833]
[1739492475207,1.74626213,2675.8,2675.5,10.04545001]
[1739492475352,1.74626213,2675.6,2675.5,10.04545001]
[1739492475552,1.74626213,2675.6,2675.5,15.03015801]
[1739492476805,1.74626213,2675.6,2675.5,12.03015801]
[1739492477715,1.74626213,2675.6,2675.5,6.30792001]
[1739492479603,5.48373213,2675.6,2675.5,6.30792001]
[1739492479802,8.28573213,2675.6,2675.5,6.30792001]
[1739492481683,10.14313085,2675.6,2675.5,6.30792001]
[1739492482295,10.15813085,2675.6,2675.5,6.30792001]
[1739492482710,19.51713085,2675.6,2675.5,6.30792001]
[1739492483276,19.51713085,2675.6,2675.5,5.3720461]
[1739492483594,19.51713085,2675.6,2675.5,4.43617219]
[1739492483986,18.95213085,2675.6,2674.8,3.73851]
[1739492484277,3.60366085,2675.0,2674.8,3.73851]
[1739492484498,3.60366085,2675.0,2674.7,3.73871]
[1739492485193,3.60366085,2675.0,2674.6,3.73881]
[1739492485399,3.60366085,2675.0,2674.8,3.73856]
[1739492485959,3.60366085,2675.0,2674.6,7.934781]
[1739492486094,3.60366085,2675.0,2674.7,3.73864]
[1739492486956,3.60366085,2675.0,2674.7,3.73872]
[1739492487246,3.60366085,2675.0,2674.7,3.73873]
[1739492487448,3.60366085,2675.0,2674.6,3.73878]
[1739492487593,3.60366085,2675.0,2674.8,3.73857]
[1739492488259,3.60366085,2675.0,2674.9,3.73845]
[1739492488558,3.60366085,2675.0,2674.8,3.73857]
[1739492490153,3.60366085,2675.0,2674.6,7.47761]
[1739492490318,3.60366085,2675.0,2674.7,3.73869]
[1739492490659,3.60366085,2675.0,2674.8,3.73859]
[1739492492413,3.78861859,2675.0,2674.6,7.47755]
[1739492492614,3.78861859,2675.0,2674.6,4.569825]
[1739492492816,3.78861859,2675.0,2674.7,3.73873]
[1739492493116,3.78861859,2675.0,2674.8,3.73857]
[1739492494332,3.78861859,2675.0,2674.6,3.73876]
[1739492495448,3.78861859,2675.0,2674.6,7.47753]
[1739492495764,3.78861859,2675.0,2674.6,3.73876]
[1739492496262,3.78861859,2675.0,2674.8,3.73859]
[1739492496563,3.78861859,2675.0,2674.6,3.73876]
[1739492496717,3.78861859,2675.0,2674.6,4.195946]
[1739492496922,2.252,2674.9,2674.6,4.195946]
[1739492497122,3.78861859,2675.0,2674.6,4.195946]
[1739492497353,3.78861859,2675.0,2674.8,3.73859]
[1739492497959,3.78861859,2675.0,2674.6,7.934706]
[1739492498165,3.78861859,2675.0,2674.7,3.7387]
[1739492498972,3.78861859,2675.0,2674.8,3.73857]
[1739492499124,3.78861859,2675.0,2674.8,3.78174078]
[1739492499955,3.78861859,2675.0,2674.9,3.73845]
[1739492500219,3.78861859,2675.0,2674.8,3.73857]
[1739492500423,3.78861859,2675.0,2674.9,3.78162078]
[1739492501046,5.85566085,2675.3,2675.2,3.73803]
[1739492501372,3.87266085,2675.3,2675.2,3.73803]
[1739492501573,3.60366085,2675.3,2675.2,3.78156474]
[1739492502354,3.60366085,2675.3,2675.2,5.20342327]
[1739492502679,3.60366085,2675.6,2675.5,4.5438]
[1739492503180,3.60366085,2675.6,2675.5,4.58399386]
[1739492503354,3.60366085,2675.6,2675.5,0.84649386]
[1739492505166,3.60366085,2675.9,2675.8,3.7372]
[1739492505487,3.60366085,2675.9,2675.8,3.7770559]
[1739492505785,3.60366085,2675.9,2675.8,0.0398559]
[1739492506075,3.60366085,2675.9,2675.6,3.73739]
[1739492506278,3.60366085,2675.9,2675.8,0.03974029]
[1739492506481,3.60366085,2675.9,2675.8,3.7372]
[1739492506650,3.60366085,2675.9,2675.8,3.77694029]
[1739492506858,3.60366085,2675.9,2675.8,4.58124029]
[1739492509898,3.60366085,2675.9,2675.8,0.84404029]
[1739492510569,3.60366085,2675.9,2675.8,4.58124029]
[1739492515703,1.74612959,2675.9,2675.8,4.58124029]
[1739492516681,1.74612959,2676.6,2676.3,3.7365]
[1739492516914,1.74612959,2676.6,2676.5,3.73622]
[1739492517319,1.74612959,2676.6,2676.5,0.0389757]
[1739492517616,1.74612959,2676.6,2676.4,3.73633]
[1739492517818,1.74612959,2676.5,2676.3,3.73641]
[1739492518119,3.99812959,2676.5,2676.2,0.7558]
[1739492518319,1.74612959,2676.3,2676.1,3.73667]
[1739492518625,1.74612959,2676.3,2676.2,3.73664]
[1739492519834,2.252,2676.5,2676.4,3.73636]
[1739492520578,2.252,2676.5,2676.3,3.73644]
[1739492520986,2.252,2676.5,2676.1,7.4734]
[1739492521192,2.252,2676.5,2676.1,3.73667]
[1739492521709,3.60006973,2676.3,2676.1,3.73667]
[1739492522434,3.60006973,2676.3,2676.2,3.73664]
[1739492523431,3.60006973,2676.3,2676.0,7.5519]
[1739492523634,3.60006973,2676.3,2676.1,3.73675]
[1739492524126,3.60006973,2676.3,2676.0,3.8151]
[1739492524327,3.60006973,2676.3,2676.0,7.552]
[1739492526342,3.60006973,2676.3,2676.0,3.8151]
[1739492526503,7.33664973,2676.3,2675.7,4.56025]
[1739492526838,7.33664973,2676.3,2675.8,3.0]
[1739492527240,3.60006973,2676.0,2675.5,3.73761]
[1739492527438,3.60006973,2676.0,2675.7,3.73733]
[1739492527642,3.60006973,2676.0,2675.7,7.47458]
[1739492527843,3.60006973,2676.0,2675.7,3.73725]
[1739492528724,3.60006973,2676.0,2675.7,7.4745]
[1739492529019,3.60006973,2676.0,2675.8,0.03866461]
[1739492529232,3.60006973,2676.0,2675.7,7.4745]
[1739492529407,3.60006973,2676.0,2675.9,0.03866461]
[1739492529835,2.802,2676.2,2675.9,3.77558461]
[1739492530141,3.7826408,2676.3,2675.9,3.77558461]
[1739492530317,0.18257107,2676.3,2676.1,3.73672]
[1739492530709,0.18257107,2676.3,2676.2,0.03866461]
[1739492531042,0.269,2676.5,2676.2,0.03866461]
[1739492531247,3.86906973,2676.6,2676.3,3.73638]
[1739492531603,3.86906973,2676.6,2676.4,0.03856682]
[1739492531807,3.60006973,2676.6,2676.4,0.03856682]
[1739492532005,3.60006973,2676.6,2676.4,3.77479682]
[1739492532407,0.269,2676.8,2676.4,3.77479682]
[1739492532710,9.85673973,2676.9,2676.5,0.8268]
[1739492533444,9.85673973,2676.9,2676.2,4.56971]
[1739492533445,5.85206973,2676.6,2676.2,4.56971]
[1739492533957,5.85206973,2676.6,2676.3,0.03856682]
[1739492534316,5.85206973,2676.6,2676.2,4.56971]
[1739492534511,3.60006973,2676.6,2676.4,0.03856682]
[1739492534712,5.85206973,2676.6,2676.2,0.8331]
[1739492534944,10.13823973,2676.6,2676.5,0.03856682]
[1739492535258,3.73623,2676.5,2676.0,4.54055]
[1739492535857,5.85206973,2676.3,2675.9,3.0]
[1739492536063,0.55,2676.2,2675.8,0.8072]
[1739492536220,3.60006973,2676.0,2675.8,3.73719]
[1739492536419,3.60006973,2676.0,2675.6,4.54461]
[1739492537948,3.60006973,2676.0,2675.8,3.73719]
[1739492538150,2.252,2676.2,2675.8,3.73719]
[1739492538759,0.18277279,2676.1,2675.8,3.73719]
[1739492539690,3.60006973,2676.3,2675.8,3.73719]
[1739492539867,0.269,2676.4,2676.1,0.8079]
[1739492540853,0.269,2676.4,2676.2,3.73655]
[1739492541768,5.85206973,2676.7,2676.3,3.73649]
[1739492541975,3.60006973,2676.7,2676.5,0.7563]
[1739492542195,3.60006973,2676.7,2676.5,4.49247]
[1739492542974,5.85206973,2677.0,2676.6,3.73608]
[1739492543183,0.269,2676.9,2676.6,3.73608]
[1739492543473,5.85206973,2677.0,2676.7,3.73592]
[1739492543866,5.85206973,2677.0,2676.8,0.03826464]
[1739492544378,5.85206973,2677.0,2676.7,3.73592]
[1739492544680,6.40206973,2677.0,2676.7,3.73592]
[1739492544876,6.40206973,2677.0,2676.8,0.03794476]
[1739492545374,6.40206973,2677.0,2676.7,3.73592]
[1739492545784,6.40206973,2677.0,2676.8,0.03794476]
[1739492546002,6.40206973,2677.0,2676.7,3.73592]
[1739492546201,6.40206973,2677.0,2676.8,0.03794476]
[1739492546506,6.40206973,2677.0,2676.6,3.68607]
[1739492546704,6.40206973,2677.0,2676.9,0.03794476]
[1739492546888,6.40206973,2677.0,2676.6,3.68607]
[1739492547067,6.40206973,2677.0,2676.9,0.03794476]
[1739492547267,6.40206973,2677.0,2676.6,3.68607]
[1739492547477,6.40206973,2677.0,2676.9,0.03794476]
[1739492547697,6.40206973,2677.0,2676.6,3.68607]
[1739492547897,6.40206973,2677.0,2676.9,0.03794476]
[1739492548076,6.40206973,2677.0,2676.6,3.68607]
[1739492548281,6.40206973,2677.0,2676.9,0.03794476]
[1739492548466,6.40206973,2677.0,2676.5,4.49248]
[1739492548801,6.40206973,2677.0,2676.5,8.22861]
[1739492549006,6.40206973,2677.0,2676.6,0.03778485]
[1739492550265,6.40206973,2677.0,2676.6,3.77380485]
[1739492551102,6.40206973,2677.0,2676.7,3.73594]
[1739492551676,6.40206973,2677.0,2676.8,0.03778485]
[1739492551894,6.40206973,2677.0,2676.6,3.73603]
[1739492552063,6.40206973,2677.0,2676.9,0.03778485]
[1739492552264,6.40206973,2677.0,2676.6,3.73603]
[1739492552502,6.40206973,2677.0,2676.9,0.03778485]
[1739492552766,6.40206973,2677.0,2676.7,3.73593]
[1739492552979,6.40206973,2677.0,2676.9,0.03778485]
[1739492553179,5.85206973,2677.0,2676.7,7.47186]
[1739492553391,5.85206973,2677.0,2676.9,0.03778485]
[1739492553800,0.19146777,2677.1,2676.9,3.73566]
[1739492554109,0.19146777,2677.1,2677.0,0.84268485]
[1739492554288,3.92684777,2677.1,2677.0,0.03778485]
[1739492554677,0.19146777,2677.1,2676.6,4.51466]
[1739492554983,0.19146777,2677.1,2676.8,3.73578]
[1739492555292,0.19146777,2677.1,2676.9,0.03714519]
[1739492556178,0.19146777,2677.1,2676.7,3.73593]
[1739492556522,0.19146777,2677.1,2676.8,0.03714519]
[1739492556828,0.19146777,2677.1,2676.7,3.73593]
[1739492557022,0.19146777,2677.1,2676.8,0.03714519]
[1739492557183,0.19146777,2677.1,2676.8,3.73578]
[1739492557381,0.19146777,2677.1,2676.9,0.03714519]
[1739492559227,0.19146777,2677.1,2676.9,3.77272519]
[1739492559590,0.19146777,2677.1,2676.9,0.03714519]
[1739492560385,0.19146777,2677.1,2676.9,3.77279519]
[1739492561084,0.19146777,2677.1,2676.9,0.03714519]
[1739492562127,0.19146777,2677.1,2676.9,3.77278519]
[1739492562324,0.19146777,2677.1,2676.9,3.73564]
[1739492562627,0.19146777,2677.1,2677.0,0.82894519]
[1739492563931,0.19146777,2677.1,2677.0,0.03714519]
[1739492564229,0.19146777,2677.1,2676.8,0.754]
[1739492564531,0.19146777,2677.1,2676.9,0.03714519]
[1739492569316,0.19146777,2677.1,2676.9,3.77280519]
[1739492569798,0.19146777,2677.1,2676.9,0.03714519]
[1739492571504,3.92684777,2677.1,2676.9,0.03714519]
[1739492571706,3.92684777,2677.1,2676.6,0.833]
[1739492571901,3.92684777,2677.1,2677.0,0.03699419]
[1739492572102,3.92684777,2677.1,2676.6,4.56907]
[1739492572302,3.92684777,2677.1,2677.0,0.03699419]
[1739492572498,6.17284777,2677.1,2676.6,4.56907]
[1739492572744,6.17284777,2677.1,2677.0,0.03699419]
[1739492572907,6.17284777,2677.1,2676.6,4.56907]
[1739492573108,6.17284777,2677.1,2677.0,0.03689648]
[1739492573363,6.17284777,2677.1,2676.6,4.56907]
[1739492573816,6.17284777,2677.1,2676.7,0.03689648]
[1739492576216,2.43746777,2677.1,2676.7,0.03689648]
[1739492577511,2.43746777,2677.1,2676.7,3.77275648]
[1739492577717,0.19146777,2677.1,2676.8,3.7357]
[1739492578563,0.19146777,2677.1,2676.9,0.03709186]
[1739492578731,0.19146777,2677.1,2676.9,3.77273186]
[1739492579455,0.19146777,2677.1,2676.9,4.55793186]
[1739492579956,0.19146777,2677.1,2676.9,0.82229186]
[1739492580624,0.19146777,2677.1,2676.9,0.7852]
[1739492580973,0.19146777,2677.1,2677.0,0.03702081]
[1739492585782,1.93599597,2677.1,2677.0,0.03702081]
[1739492587468,1.93599597,2677.1,2676.6,4.49588]
[1739492587666,1.93599597,2677.1,2677.0,0.03546276]
[1739492587862,1.93599597,2677.1,2676.6,4.49588]
[1739492588065,1.93599597,2677.1,2676.7,0.03546276]
[1739492588264,1.7445282,2676.9,2676.7,0.03546276]
[1739492589644,1.7445282,2676.9,2676.7,3.77128276]
[1739492590766,1.7445282,2676.9,2676.8,3.7358]
[1739492591168,1.7445282,2676.9,2676.8,3.77130359]
[1739492591616,5.4792882,2677.6,2676.8,3.77130359]
[1739492591617,0.73463217,2677.7,2677.0,3.73552]
[1739492591757,0.19079884,2677.7,2677.2,0.8079]
[1739492591952,0.19079884,2677.7,2677.4,3.73488]
[1739492592381,1.93532704,2677.7,2677.5,0.03556572]
[1739492592901,1.93532704,2677.7,2677.3,7.47012]
[1739492593079,1.93532704,2677.7,2677.6,0.03545033]
[1739492593390,1.93532704,2677.7,2677.3,7.47004]
[1739492593694,0.19079884,2677.7,2677.3,3.73502]
[1739492593865,0.19079884,2677.7,2677.4,0.03545033]
[1739492595001,2.796,2677.6,2677.4,0.03545033]
[1739492597276,2.796,2677.6,2677.1,7.47066]
[1739492597586,10.14226828,2677.6,2677.5,0.03515746]
[1739492597903,15.76049828,2677.6,2677.2,3.73523]
[1739492598100,6.40749828,2677.6,2677.2,7.47046]
[1739492598405,6.40749828,2677.6,2677.3,0.03515746]
[1739492598904,10.14220828,2677.6,2677.4,0.03515746]
[1739492599061,6.40749828,2677.6,2677.0,3.73542]
[1739492599267,6.40749828,2677.6,2677.1,3.77048746]
[1739492599567,6.40749828,2677.6,2677.1,3.77049746]
[1739492599785,6.40749828,2677.6,2677.1,0.03515746]
[1739492600419,0.55,2677.2,2677.1,0.03515746]
[1739492600584,2.796,2677.2,2677.1,0.03515746]
[1739492600785,2.796,2677.2,2676.7,3.73594]
[1739492601100,5.84249828,2677.0,2676.7,3.73592]
[1739492601407,5.84249828,2677.0,2676.6,7.47194]
[1739492601717,5.84249828,2677.0,2676.6,3.73596]
[1739492602070,5.84249828,2677.0,2676.6,7.47196]
[1739492602895,5.84249828,2677.0,2676.6,3.73596]
[1739492603535,5.84249828,2677.0,2676.6,7.47196]
[1739492603741,5.84249828,2677.0,2676.8,3.73579]
[1739492603900,2.246,2677.1,2676.9,3.73566]
[1739492604209,0.19149962,2677.0,2676.9,3.73566]
[1739492604806,0.19149962,2677.0,2676.7,3.73594]
[1739492604970,0.19149962,2677.0,2676.8,3.73571]
[1739492605913,0.19149962,2677.0,2676.7,3.73594]
[1739492606067,2.43749962,2677.0,2676.7,7.47179]
[1739492606473,2.43749962,2677.0,2676.7,3.73585]
[1739492606788,2.43749962,2677.0,2676.7,7.47169]
[1739492607512,2.43749962,2677.0,2676.8,3.7358]
[1739492609523,2.43749962,2677.0,2676.7,3.73584]
[1739492609678,2.43749962,2677.0,2676.8,3.73574]
[1739492611300,2.43749962,2677.0,2676.9,3.73566]
[1739492613228,2.43749962,2677.0,2676.8,4.51329]
[1739492613613,2.43749962,2677.0,2676.8,3.73579]
[1739492614020,2.43749962,2677.0,2676.8,7.47151]
[1739492614618,2.43749962,2677.0,2676.8,3.73572]
[1739492615508,2.43749962,2677.0,2676.8,7.47142]
[1739492615711,2.43749962,2677.0,2676.9,3.73566]
[1739492616933,0.19149962,2677.0,2676.9,3.73566]
[1739492618939,0.19149962,2677.0,2676.9,3.77119021]
[1739492620524,0.19149962,2677.0,2676.9,0.03553021]